Cogmind - Beta 11 X4 @@@ ROGUE MODE // 2021.06.03 @ 21:06:48 Player: Heavyrisk Result: Destroyed by D-53 Grenadier with Mini Grenade Launcher Performance ------------- Evolutions (0) 0 Regions Visited (2) 400 Robots Destroyed (8) 40 Value Destroyed (183) 183 Prototype IDs (0) 0 Alien Tech Used (0) 0 Bonus (0) 0 TOTAL SCORE: 623 Bonus ------- None Cogmind --------- Core Integrity 0/250 Matter 268/300 Energy 92/250 System Corruption 0% Temperature Cool (40) Movement Walking (200) Ox1 Location -10/Mines Parts ------- > --- POWER (1) -------- Ion Engine > --- PROPULSION (2) --- Aluminum Leg Aluminum Leg > --- UTILITY (2) ------ Large Storage Unit > --- WEAPON (2) ------- Beam Cannon Light Assault Rifle > --- INVENTORY (15) --- Medium Storage Unit Large Storage Unit Small Matter Pod (50) Medium Matter Pod (15) Transport Network Coupler Targeting Computer Beam Cannon Beam Cannon Mining Laser Peak State ------------ > --- POWER ------------ Light Ion Engine > --- PROPULSION ------- Light Treads Light Treads > --- UTILITY ---------- Medium Storage Unit Tractor Beam > --- WEAPON ----------- Small Laser Assault Rifle > --- INVENTORY -------- Ion Engine Aluminum Leg Aluminum Leg Small Storage Unit Small Matter Pod Targeting Computer EM Pulse Gun Beam Cannon Beam Cannon Beam Cannon [Rating: 8] Favorites ----------- Power Light Ion Engine Engine Light Ion Engine Propulsion Light Treads Treads Light Treads Leg Aluminum Leg Utility Tractor Beam Device Tractor Beam Storage Medium Storage Unit Weapon Assault Rifle Energy Gun Small Laser Energy Cannon Beam Cannon Ballistic Gun Assault Rifle Build | -11 -10 -10 ------- Run | Scr Mat Min Slots Evolved . | . . . Power . | . . . Propulsion . | . . . Utility . | . . . Weapon . | . . . Parts Attached 16 | 7 5 4 Power 3 | 1 1 1 Engine 3 | 1 1 1 Core . | . . . Reactor . | . . . Propulsion 4 | 2 . 2 Treads 2 | 2 . . Leg 2 | . . 2 Wheel . | . . . Hover . | . . . Flight . | . . . Utility 5 | 2 3 . Device 2 | 1 1 . Storage 3 | 1 2 . Processor . | . . . Hackware . | . . . Protection . | . . . Artifact . | . . . Weapon 4 | 2 1 1 Energy Gun 1 | 1 . . Energy Cannon 1 | . . 1 Ballistic Gun 2 | 1 1 . Ballistic Cannon . | . . . Launcher . | . . . Special Weapon . | . . . Impact Weapon . | . . . Slashing Weapon . | . . . Piercing Weapon . | . . . Special Melee Weapon . | . . . Unidentified Prototypes . | . . . Parts Lost 5 | . . 5 Power 1 | . . 1 Propulsion 2 | . . 2 Utility 1 | . . 1 Weapon 1 | . . 1 Highest Loss Streak 5 | . . 5 Average Slot Usage (%) 99 | . 100 98 Engine 14 | . 14 14 Treads 27 | . 28 25 Device 13 | . 14 12 Storage 14 | . 14 14 Energy Gun 5 | . 7 . Ballistic Gun 22 | . 20 26 Naked Turns . | . . . Heaviest Build 29 | 12 29 29 Greatest Support 40 | 40 40 40 Greatest Overweight (x) 1 | 1 . 1 Average Overweight (x) . | . . . Largest Inventory Capacity 15 | 8 15 15 Average Capacity 10 | 7 10 15 Most Carried 13 | 4 13 13 Average Carried 8 | 2 8 12 Final Capacity 15 | 8 15 15 Final Carried 13 | 4 13 9 Class Distribution -------------------- 100% | Mutant Dominant Class ---------------- Mutant | -10/Materials Mutant | -10/Mines Resources | -11 -10 -10 ----------- Run | Scr Mat Min Matter Collected 477 | 279 167 31 Remotely 240 | 42 167 31 Salvage Created 426 | 94 306 26 Parts 16 | 1 13 2 Haulers Intercepted 1 | . 1 . Recyclers Shooed 1 | . 1 . Parts Field Recycled . | . . . Retrieved Matter . | . . . Parts Self-Destructed . | . . . Prevented . | . . . Kills | -11 -10 -10 ------- Run | Scr Mat Min Combat Hostiles Destroyed 5 | . 3 2 Guns 5 | . 3 2 Classes Destroyed 6 | 1 3 2 Worker 1 | . 1 . Hauler 1 | . 1 . Recycler 2 | 1 1 . Grunt 3 | . 3 . Demolisher 1 | . . 1 Assembled 1 | . . 1 Best Kill Streak 3 | 1 3 2 Combat Bots Only 3 | . 3 2 Max Kills in Single Turn 1 | 1 1 1 Gunslinging . | . . . Exploded . | . . . Melee . | . . . Uniques/NPCs Destroyed . | . . . Combat | -11 -10 -10 -------- Run | Scr Mat Min Damage Taken 937 | . 232 705 Core 256 | . 82 174 Absorbed by Shields . | . . . Core Remaining (%) 100 | 100 . . Volleys Fired 33 | 3 23 7 Largest 2 | 2 2 2 Hottest 80 | 60 60 80 Shots Fired 66 | 6 46 14 Gun 65 | 6 46 13 Cannon 1 | . . 1 Launcher . | . . . Special . | . . . Kinetic 47 | 3 31 13 Thermal 19 | 3 15 1 Explosive . | . . . Electromagnetic . | . . . Robot Hit Streak 13 | 5 13 7 Robot Miss Streak 4 | . 4 2 Penetration Max . | . . . Secondary Targets . | . . . Shots Hit Robots 44 | 5 29 10 Core Hits 20 | 2 12 6 Critical Kills . | . . . Critical Parts Destroyed . | . . . Critical Strikes . | . . . Melee Attacks . | . . . Impact . | . . . Slashing . | . . . Piercing . | . . . Sneak Attacks . | . . . Combat Hostiles . | . . . Follow-up Attacks . | . . . Damage Inflicted 514 | 57 347 110 Guns 511 | 57 344 110 Cannons . | . . . Explosions . | . . . Melee . | . . . Ramming 3 | . 3 . Kinetic 378 | 34 234 110 Thermal 133 | 23 110 . Explosive . | . . . Electromagnetic . | . . . Impact . | . . . Slashing . | . . . Piercing . | . . . Highest Corruption . | . . . Average Corruption . | . . . Corruption Purged . | . . . Overload Shots . | . . . Overflow Damage . | . . . Projectiles . | . . . Explosions . | . . . Melee . | . . . Knockbacks . | . . . Impact . | . . . Kinetic . | . . . Secondary . | . . . Self-Inflicted Damage . | . . . Shots . | . . . Rammed 2 | . 2 . Targets Rammed 2 | . 2 . Kicked . | . . . Crushed . | . . . Highest Temperature 114 | . 114 40 Average Temperature 58 | . 59 30 Received Heat Transfer 132 | . 132 . Siege Activations . | . . . Robots Corrupted . | . . . Combat Hostiles . | . . . Parts Fried . | . . . Impact Corruptions . | . . . Robots Melted . | . . . Combat Hostiles . | . . . Parts Melted 1 | . 1 . Heat Transferred 300 | 50 250 . Parts Sabotaged . | . . . Parts Stolen . | . . . Parts Stripped . | . . . Power Chain Reactions . | . . . Missiles Intercepted . | . . . Alert | -11 -10 -10 ------- Run | Scr Mat Min Peak Influence 148 | 5 148 30 Initial 3 | . 3 . Average 45 | 1 68 . Maximum Alert Level . | . . . Low Security (%) 100 | 100 100 100 Level 1 . | . . . Level 2 . | . . . Level 3 . | . . . Level 4 . | . . . Level 5 . | . . . High Security . | . . . Max Security . | . . . Squads Dispatched 1 | . 1 . Investigation . | . . . Extermination . | . . . Reinforcement 1 | . 1 . Assault . | . . . Garrison . | . . . Intercept . | . . . Construction Impeded . | . . . Haulers Reinforced . | . . . Cargo Convoy Interrupts . | . . . Stealth | -11 -10 -10 --------- Run | Scr Mat Min Distress Signals 2 | . 2 . Communications Jammed . | . . . Distress Signals . | . . . Times Spotted 36 | . 12 24 Peak Tracking Total 21 | . 5 21 Tactical Retreats 2 | . 1 1 Traps | -11 -10 -10 ------- Run | Scr Mat Min Traps Triggered . | . . . Indirectly . | . . . Trap Hack Attempts . | . . . Triggered . | . . . Disarmed . | . . . Reprogrammed . | . . . Reused . | . . . Traps Extracted . | . . . Installed . | . . . Triggered . | . . . Machines | -11 -10 -10 ---------- Run | Scr Mat Min Machines Disabled . | . . . Max in Single Turn . | . . . Machines Sabotaged . | . . . Garrisons Compromised . | . . . Overloaded Fab Kills . | . . . Fab Network Shutdowns . | . . . Hacking | -11 -10 -10 --------- Run | Scr Mat Min Machines Accessed 2 | . 2 . Terminals 2 | . 2 . Fabricators . | . . . Repair Stations . | . . . Recycling Units . | . . . Scanalyzers . | . . . Garrison Access . | . . . Total Hacks 9 | . 9 . Successful 5 | . 5 . Failed 4 | . 4 . Catastrophic . | . . . Database Lockouts . | . . . Manual 4 | . 4 . Terminals 9 | . 9 . Fabricators . | . . . Repair Stations . | . . . Recycling Units . | . . . Scanalyzers . | . . . Garrison Access . | . . . Terminal Hacks 2 | . 2 . Locate Traps 1 | . 1 . Zone Layout 1 | . 1 . Fabricator Hacks . | . . . Repair Station Hacks . | . . . Recycling Unit Hacks . | . . . Scanalyzer . | . . . Garrison Access Hacks . | . . . Unauthorized Hacks 2 | . 2 . Terminals 2 | . 2 . Botnet 2 | . 2 . Fabricators . | . . . Repair Stations . | . . . Recycling Units . | . . . Scanalyzers . | . . . Garrison Access . | . . . Data Cores Recovered . | . . . Used . | . . . Hacking Detections 2 | . 2 . Full Trace Events . | . . . Feedback Events . | . . . Feedback Blocked . | . . . Robot Schematics Acquired . | . . . Robots Built . | . . . Matter . | . . . Time . | . . . Total Robot Build Rating . | . . . Part Schematics Acquired . | . . . Parts Built . | . . . Matter . | . . . Time . | . . . Total Part Build Rating . | . . . Parts Repaired . | . . . Time . | . . . Parts Recycled . | . . . Recycled Matter . | . . . Retrieved Matter . | . . . Retrieved Components . | . . . Parts Scanalyzed . | . . . Part Schematics Acquired . | . . . Parts Damaged . | . . . Bothacking | -11 -10 -10 ------------ Run | Scr Mat Min Used RIF Installer . | . . . Robots Hacked . | . . . Non-combat . | . . . Combat . | . . . Robot Hacks Applied . | . . . Relay Couplers Released . | . . . Robots Rewired . | . . . Allies Hacked . | . . . Hacks Repelled . | . . . Allies | -11 -10 -10 -------- Run | Scr Mat Min Total Allies . | . . . Largest Group . | . . . Highest-Rated Group . | . . . Highest-Rated Ally . | . . . Total Orders . | . . . Ally Attacks . | . . . Total Damage . | . . . Kills . | . . . Allies Corrupted . | . . . Allies Melted . | . . . Intel | -11 -10 -10 ------- Run | Scr Mat Min Robot Analysis Total . | . . . Derelict Logs Recovered . | . . . Drone Launches . | . . . Drone Recoveries . | . . . Exploration | -11 -10 -10 ------------- Run | Scr Mat Min Turns Passed 725 | 120 475 130 Spaces Moved 367 | 65 239 63 Core 8 | 8 . . Treads 357 | 57 239 61 Legs 2 | . . 2 Wheels . | . . . Hover . | . . . Flight . | . . . Fastest Speed 50 | 50 160 160 Average Speed 158 | 149 160 161 Slowest Speed 200 | 160 160 200 Overloaded Moves . | . . . Propulsion Burnouts . | . . . Robots Hopped . | . . . Cave-ins Triggered . | . . . Exploration Rate (%) 22 | 7 39 22 Regions Visited 2 Branch Regions 1 Pre-discovered Areas . | . . . Known Exits Taken . | . . . Unknown Exits Taken 2 | 1 1 . Scrap Searched . | . . . Spaces Dug . | . . . Terrain Destroyed . | . . . Melee . | . . . Projectile . | . . . AOE . | . . . Terrain Rammed . | . . . Walls Destroyed . | . . . Machines Disabled . | . . . Actions | -11 -10 -10 --------- Run | Scr Mat Min Total 445 | 78 288 79 Wait 11 | . 6 5 Move 365 | 64 238 63 Hop . | . . . Pick Up 13 | 4 9 . Fast Attach 8 | 7 1 . Attach 4 | . . 4 Detach . | . . . Swap 4 | . 4 . Drop 5 | . 5 . Fire 33 | 3 23 7 Melee . | . . . Ram . | . . . Kick . | . . . Crush 2 | . 2 . Escape Stasis . | . . . Rewire . | . . . Trap . | . . . Miscellaneous . | . . . Route ------- -11/Scrapyard -10/Materials (discovered 2 exits: [*Mat] / [*Min]) -10/Mines History --------- Turn | Location | Event 2 | -11/Scrapyard | Met Revision 17 8 | -11/Scrapyard | Discovered new exit (range 16) 121 | -11/Scrapyard | Entered Materials 305 | -10/Materials | Build established: Mutant 486 | -10/Materials | Discovered new exit (range 10) 545 | -10/Materials | Discovered new exit (range 10) 596 | -10/Materials | Entered Mines 669 | -10/Mines | Assembled infested the area 674 | -10/Mines | Assisted by a Guerilla fighting off Assembled 707 | -10/Mines | Core integrity fell below 50% 723 | -10/Mines | Core integrity fell below 20% 726 | -10/Mines | Destroyed by D-53 Grenadier with Mini Grenade Launcher Last Messages --------------- 00706_ HV Slug penetrates Earth. 00708_ HV Slug penetrates D-53 Grenadier. 00708_ D-53 Grenadier suffers critical hit (Destroy). 00708_ K-01 Serf collects debris. 00710_ D-53 Grenadier suffers critical hit (Destroy). 00710_ D-53 Grenadier destroyed. 00711_ K-01 Serf collects debris. 00712_ Lgt. Treads destroyed. 00715_ Assault Rifle destroyed. 00715_ Tractor Beam destroyed. 00715_ K-01 Serf collects debris. 00717_ The unstable cave ceiling collapses. 00719_ K-01 Serf collects debris. 00720_ HV Slug penetrates D-53 Grenadier. 00720_ D-53 Grenadier knocked back. 00720_ 6N-NMU(h) destroyed. 00722_ Ion Engine destroyed. 00723_ K-01 Serf collects debris. 00724_ The unstable cave ceiling collapses. 00725_ K-01 Serf collects debris. Map ----- +----------------------------------------------------+ | ?????????????????????????????????????????????? | | ?????????????????????????????????????????????? | | ?????????????????????????????????????????????? | | ?????????????????????????????????????????????? | | ?????????????????????????????????????????????? | | ?????????????????????????????????????????????? | | ?????????????????????????????????????????????? | | ????????????? #?????????????????????????????? | | ????????????? #??### #?????????????????????? | | ????????????? =##"# #????????????????????? | | ???????????? [* % ?????????????????????? | | ???????????? % % #?????????????????????? | | ???????????# =% #?????????????????????? | | ???????????? % ??????????????????????? | | ??????????# r ???????????????????????? | | ??????????# ????????????????????????? | | ??????????? %% #?????????#??????????????? | | ???????????? ! #???????? #??????????????? | | ???????????### %! ####???? ##?????????????? | | ???????????? ;; ## ###?# k ##????????????? | | ????????????## ## ###??????????? | | ????????????# %d ?????????? | | ????????????## # # # ?????????? | | ?????????????#### #????????????? | | ??????????????## #?????????????? | | ??????????????# @ ## ##?????????????? | | ??????????????# #??????????????????? | | ??????????????# ##??????????????????? | | ??????????????# #???????????????????? | | ??????????????# ##???????????????????? | | ??????????????## #????????????????????? | | ???????????????## #????????????????????? | | ???????????????##### ##????????????????????? | | ???????????????# ##?????????????????????? | | ???????????????# ## #??????????????????????? | | ???????????????# ### #??????????????????????? | | ???????????????# #?# #??????????????????????? | | ??????? ????# #?# #??????????????????????? | | ????????" """ # ### #??????############????? | | ????????" """ #??????# #????? | | ????????" """ ##### ######## """ #????? | | ??????? ????# """ #????? | | ????????" """ ?????########### """ #????? | | ???????"" """????????????????# #????? | | ???????"" ""?????????????????# """ """ #????? | | ?????????? ?????????????????# """ """ #????? | | ??????????"??????????????????# """ """ #????? | | ?????????????????????????????# #????? | | ?????????????????????????????############????? | | ?????????????????????????????????????????????? | +----------------------------------------------------+ Best States ------------- Heat Dissipation 25 Energy Generation 10 Energy Capacity 250 Matter Stores 300 Matter Capacity 300 Sight Range 16 Terrain Scan Density 10 Evasion (%) 40 Recoil Reduction 2 Item Schematics ----------------- None Robot Schematics ------------------ None Fabricated ------------ Nothing Alien Tech Used ----------------- None Achievements -------------- None Challenges ------------ None Game ------ Seed StorageMomentumRay Manual? 0 Play Time 00:10:29 Cumulative 239.6 hours Start 2021.06.03 @ 20:37:20 End 2021.06.03 @ 21:06:48 Sessions 3 Manual Loads 0 Difficulty Rogue Special Mode None Game No. 178 Rogue 178 Adventurer 0 Explorer 0 Win Type - Total 1 Types 1/0/0/0/0/0/0/0/0 Lore% 58 Gallery% 66 Achievement% 45 Wizard Run 0 Options --------- ASCII 0 Keyboard 0 Movement Arrows Keybinds 0 Fullscreen 1 Font 18/SmallcapsGlow Map View 76x50 Tactical HUD 1 Map Filters NONE Filters NONE Steam 1 RUN: cc97867e-ff7b-4ec3-b9c1-c4468074ed45